[Event "January 2 Late 2024"]
[Site "https://www.chess.com"]
[Date "2024.01.02"]
[Round "6"]
[White "Harsha Bharathakoti"]
[Black "Atanasov, Anthony"]
[Result "0-1"]
[Board "28"]
[TimeControl "180+1"]
[WhiteFideId "5078776"]
[BlackFideId "2623897"]
[WhiteElo "2921"]
[BlackElo "2663"]
[WhiteTeam "IND"]
[BlackTeam "CAN"]
[WhiteClock "0:00:02"]
[BlackClock "0:00:04"]

1. e4 {[%clk 0:03:00]}  e5 {[%clk 0:02:58]} 2. Nf3 {[%clk 0:02:59]}  Nf6 {[%clk 0:02:59]} 3. Nc3 {[%clk 0:02:57]}  Nc6 {[%clk 0:02:59]} 4. Bb5 {[%clk 0:02:56]}  Nd4 {[%clk 0:02:59]} 5. Bc4 {[%clk 0:02:55]}  c6 {[%clk 0:03:00]} 6. Nxe5 {[%clk 0:02:40]}  d5 {[%clk 0:02:59]} 7. exd5 {[%clk 0:02:41]}  cxd5 {[%clk 0:03:00]} 8. Be2 {[%clk 0:02:35]}  Qe7 {[%clk 0:02:49]} 9. Nd3 {[%clk 0:02:26]}  Bg4 {[%clk 0:02:07]} 10. h3 {[%clk 0:02:11]}  Bh5 {[%clk 0:01:59]} 11. Nf4 {[%clk 0:02:05]}  Nxe2 {[%clk 0:01:41]} 12. Ncxe2 {[%clk 0:02:04]}  Bg6 {[%clk 0:01:31]} 13. O-O {[%clk 0:01:58]}  O-O-O {[%clk 0:01:27]} 14. d3 {[%clk 0:01:55]}  Kb8 {[%clk 0:01:23]} 15. Re1 {[%clk 0:01:53]}  Ka8 {[%clk 0:01:21]} 16. a4 {[%clk 0:01:46]}  Qc7 {[%clk 0:01:19]} 17. Nxg6 {[%clk 0:01:44]}  hxg6 {[%clk 0:01:19]} 18. Bf4 {[%clk 0:01:45]}  Qb6 {[%clk 0:01:03]} 19. Be5 {[%clk 0:01:14]}  Bb4 {[%clk 0:00:37]} 20. c3 {[%clk 0:01:06]}  Bd6 {[%clk 0:00:19]} 21. Bxd6 {[%clk 0:00:56]}  Rxd6 {[%clk 0:00:16]} 22. Qd2 {[%clk 0:00:51]}  g5 {[%clk 0:00:13]} 23. a5 {[%clk 0:00:48]}  Qa6 {[%clk 0:00:06]} 24. Qxg5 {[%clk 0:00:20]}  Qxd3 {[%clk 0:00:07]} 25. Nd4 {[%clk 0:00:10]}  a6 {[%clk 0:00:02]} 26. Re3 {[%clk 0:00:02]}  Qh7 {[%clk 0:00:02]} 27. Rae1 {[%clk 0:00:01]}  Ne4 {[%clk 0:00:03]} 28. Qf5 {[%clk 0:00:02]}  Rg6 {[%clk 0:00:02]} 29. Qxd5 {[%clk 0:00:02]}  Nf6 {[%clk 0:00:02]} 30. Qf3 {[%clk 0:00:02]}  Qh4 {[%clk 0:00:02]} 31. Kf1 {[%clk 0:00:02]}  Qg5 {[%clk 0:00:02]} 32. Nf5 {[%clk 0:00:02]}  Rc8 {[%clk 0:00:01]} 33. Ng3 {[%clk 0:00:03]}  Qb5+ {[%clk 0:00:01]} 34. Kg1 {[%clk 0:00:03]}  Qxa5 {[%clk 0:00:02]} 35. Qf5 {[%clk 0:00:03]}  Qc7 {[%clk 0:00:02]} 36. Re7 {[%clk 0:00:03]}  Qc6 {[%clk 0:00:02]} 37. Rxf7 {[%clk 0:00:03]}  Rh6 {[%clk 0:00:02]} 38. Rxg7 {[%clk 0:00:03]}  Nd5 {[%clk 0:00:01]} 39. Re5 {[%clk 0:00:03]}  Rf6 {[%clk 0:00:01]} 40. Qe4 {[%clk 0:00:03]}  Nf4 {[%clk 0:00:01]} 41. Qxc6 {[%clk 0:00:03]}  Rcxc6 {[%clk 0:00:02]} 42. Rg8+ {[%clk 0:00:03]}  Ka7 {[%clk 0:00:02]} 43. Re3 {[%clk 0:00:03]}  Rb6 {[%clk 0:00:03]} 44. b4 {[%clk 0:00:04]}  Nd5 {[%clk 0:00:03]} 45. Rd3 {[%clk 0:00:04]}  Nf4 {[%clk 0:00:03]} 46. Rf3 {[%clk 0:00:04]}  Rbc6 {[%clk 0:00:03]} 47. Ne4 {[%clk 0:00:04]}  Ne2+ {[%clk 0:00:03]} 48. Kf1 {[%clk 0:00:04]}  Rxf3 {[%clk 0:00:03]} 49. gxf3 {[%clk 0:00:05]}  Nxc3 {[%clk 0:00:03]} 50. Nxc3 {[%clk 0:00:05]}  Rxc3 {[%clk 0:00:04]} 51. Kg2 {[%clk 0:00:05]}  Rb3 {[%clk 0:00:04]} 52. Rg4 {[%clk 0:00:06]}  b6 {[%clk 0:00:02]} 53. h4 {[%clk 0:00:06]}  a5 {[%clk 0:00:02]} 54. h5 {[%clk 0:00:06]}  Rxb4 {[%clk 0:00:01]} 55. h6 {[%clk 0:00:05]}  Rb5 {[%clk 0:00:02]} 56. Rh4 {[%clk 0:00:04]}  Rg5+ {[%clk 0:00:02]} 57. Kh3 {[%clk 0:00:04]}  Rg8 {[%clk 0:00:03]} 58. h7 {[%clk 0:00:05]}  Rh8 {[%clk 0:00:03]} 59. Kg4 {[%clk 0:00:06]}  a4 {[%clk 0:00:04]} 60. Kg5 {[%clk 0:00:06]}  b5 {[%clk 0:00:03]} 61. Kg6 {[%clk 0:00:07]}  a3 {[%clk 0:00:03]} 62. f4 {[%clk 0:00:05]}  a2 {[%clk 0:00:03]} 63. Rh1 {[%clk 0:00:05]}  b4 {[%clk 0:00:04]} 64. f5 {[%clk 0:00:05]}  b3 {[%clk 0:00:04]} 65. f6 {[%clk 0:00:02]}  b2 {[%clk 0:00:04]} 66. Kg7 {[%clk 0:00:03]}  Rxh7+ {[%clk 0:00:04]} 67. Rxh7 {[%clk 0:00:03]}  a1=Q {[%clk 0:00:04]} 68. f7 {[%clk 0:00:03]}  b1=Q+ {[%clk 0:00:03]} 69. Kg8 {[%clk 0:00:02]}  Qg6+ {[%clk 0:00:04]} 0-1

[Event "January 2 Late 2024"]
[Site "https://www.chess.com"]
[Date "2024.01.02"]
[Round "6"]
[White "Liascovich, Lucas"]
[Black "Martin Fuentes, Alberto"]
[Result "1-0"]
[Board "29"]
[TimeControl "180+1"]
[WhiteFideId "108634"]
[BlackFideId "2292289"]
[WhiteElo "2916"]
[BlackElo "2653"]
[WhiteTeam "ARG"]
[BlackTeam "ESP"]
[WhiteClock "0:01:54"]
[BlackClock "0:00:52"]

1. e4 {[%clk 0:03:00]}  e6 {[%clk 0:02:59]} 2. d3 {[%clk 0:02:58]}  d5 {[%clk 0:03:00]} 3. Nd2 {[%clk 0:02:59]}  Be7 {[%clk 0:02:57]} 4. Ngf3 {[%clk 0:02:59]}  Nf6 {[%clk 0:02:52]} 5. g3 {[%clk 0:02:58]}  b6 {[%clk 0:02:50]} 6. e5 {[%clk 0:02:56]}  Nfd7 {[%clk 0:02:49]} 7. Bg2 {[%clk 0:02:56]}  c5 {[%clk 0:02:49]} 8. O-O {[%clk 0:02:56]}  Nc6 {[%clk 0:02:50]} 9. Re1 {[%clk 0:02:56]}  Qc7 {[%clk 0:02:48]} 10. c4 {[%clk 0:02:56]}  d4 {[%clk 0:02:38]} 11. Ne4 {[%clk 0:02:54]}  Bb7 {[%clk 0:02:38]} 12. Bf4 {[%clk 0:02:53]}  h6 {[%clk 0:02:36]} 13. h4 {[%clk 0:02:54]}  Rg8 {[%clk 0:02:16]} 14. h5 {[%clk 0:02:50]}  O-O-O {[%clk 0:02:10]} 15. a3 {[%clk 0:02:43]}  g5 {[%clk 0:02:03]} 16. hxg6 {[%clk 0:02:43]}  fxg6 {[%clk 0:02:03]} 17. b4 {[%clk 0:02:41]}  g5 {[%clk 0:02:02]} 18. Nd6+ {[%clk 0:02:42]}  Bxd6 {[%clk 0:02:00]} 19. exd6 {[%clk 0:02:42]}  Qb8 {[%clk 0:02:00]} 20. Bd2 {[%clk 0:02:34]}  Qxd6 {[%clk 0:01:59]} 21. b5 {[%clk 0:02:34]}  Ne7 {[%clk 0:01:55]} 22. a4 {[%clk 0:02:34]}  Rdf8 {[%clk 0:01:52]} 23. a5 {[%clk 0:02:32]}  Rf7 {[%clk 0:01:48]} 24. axb6 {[%clk 0:02:32]}  axb6 {[%clk 0:01:48]} 25. Ra7 {[%clk 0:02:32]}  Rgf8 {[%clk 0:01:35]} 26. Rxb7 {[%clk 0:02:30]}  Kxb7 {[%clk 0:01:36]} 27. Nxg5+ {[%clk 0:02:30]}  Kc8 {[%clk 0:01:32]} 28. Nxf7 {[%clk 0:02:27]}  Rxf7 {[%clk 0:01:33]} 29. Qa4 {[%clk 0:02:24]}  h5 {[%clk 0:01:24]} 30. Qa8+ {[%clk 0:02:11]}  Nb8 {[%clk 0:01:23]} 31. Rxe6 {[%clk 0:02:11]}  Qxe6 {[%clk 0:01:19]} 32. Qb7+ {[%clk 0:02:11]}  Kd8 {[%clk 0:01:19]} 33. Qxb8+ {[%clk 0:02:11]}  Nc8 {[%clk 0:01:20]} 34. Bd5 {[%clk 0:02:05]}  Qf5 {[%clk 0:01:07]} 35. Bxf7 {[%clk 0:01:57]}  Qxf7 {[%clk 0:01:08]} 36. Bg5+ {[%clk 0:01:58]}  Kd7 {[%clk 0:01:03]} 37. Qb7+ {[%clk 0:01:57]}  Kd6 {[%clk 0:01:00]} 38. Bf4+ {[%clk 0:01:56]}  Ke6 {[%clk 0:00:55]} 39. Qxc8+ {[%clk 0:01:56]}  Kf6 {[%clk 0:00:52]} 40. Qc6+ {[%clk 0:01:54]} 1-0

[Event "January 2 Late 2024"]
[Site "https://www.chess.com"]
[Date "2024.01.02"]
[Round "6"]
[White "Ehlvest, Jaan"]
[Black "Zhigalko, Sergei"]
[Result "0-1"]
[Board "30"]
[TimeControl "180+1"]
[WhiteFideId "4500016"]
[BlackFideId "13502956"]
[WhiteElo "2641"]
[BlackElo "2912"]
[WhiteTeam "USA"]
[BlackTeam "BLR"]
[WhiteClock "0:00:00"]
[BlackClock "0:00:03"]

1. e4 {[%clk 0:02:59]}  c5 {[%clk 0:03:00]} 2. Nf3 {[%clk 0:02:58]}  Nc6 {[%clk 0:03:00]} 3. Bb5 {[%clk 0:02:56]}  Nf6 {[%clk 0:03:00]} 4. Bxc6 {[%clk 0:02:49]}  dxc6 {[%clk 0:03:00]} 5. d3 {[%clk 0:02:48]}  Bg4 {[%clk 0:02:59]} 6. Nbd2 {[%clk 0:02:46]}  Qc7 {[%clk 0:02:59]} 7. h3 {[%clk 0:02:45]}  Bh5 {[%clk 0:02:59]} 8. a4 {[%clk 0:02:41]}  Nd7 {[%clk 0:02:58]} 9. a5 {[%clk 0:02:36]}  e5 {[%clk 0:02:50]} 10. g4 {[%clk 0:02:31]}  Bg6 {[%clk 0:02:49]} 11. Nh4 {[%clk 0:02:31]}  f6 {[%clk 0:02:43]} 12. Nc4 {[%clk 0:02:12]}  Bf7 {[%clk 0:02:42]} 13. Nf5 {[%clk 0:02:07]}  Rd8 {[%clk 0:02:30]} 14. b3 {[%clk 0:01:57]}  g6 {[%clk 0:02:10]} 15. Nh6 {[%clk 0:01:37]}  Be6 {[%clk 0:02:10]} 16. h4 {[%clk 0:01:25]}  b5 {[%clk 0:02:03]} 17. axb6 {[%clk 0:01:23]}  axb6 {[%clk 0:02:04]} 18. Bd2 {[%clk 0:01:19]}  Rc8 {[%clk 0:01:41]} 19. h5 {[%clk 0:01:09]}  b5 {[%clk 0:01:39]} 20. Na5 {[%clk 0:01:03]}  Bxh6 {[%clk 0:01:11]} 21. Bxh6 {[%clk 0:01:02]}  g5 {[%clk 0:01:12]} 22. b4 {[%clk 0:00:39]}  Kf7 {[%clk 0:00:49]} 23. bxc5 {[%clk 0:00:29]}  Nxc5 {[%clk 0:00:50]} 24. Qf3 {[%clk 0:00:18]}  Rhg8 {[%clk 0:00:49]} 25. O-O {[%clk 0:00:17]}  Ra8 {[%clk 0:00:28]} 26. d4 {[%clk 0:00:17]}  exd4 {[%clk 0:00:16]} 27. e5 {[%clk 0:00:16]}  Qxe5 {[%clk 0:00:16]} 28. Nxc6 {[%clk 0:00:15]}  Qe4 {[%clk 0:00:06]} 29. Qxe4 {[%clk 0:00:13]}  Nxe4 {[%clk 0:00:07]} 30. Nxd4 {[%clk 0:00:13]}  Nd2 {[%clk 0:00:08]} 31. Rxa8 {[%clk 0:00:11]}  Rxa8 {[%clk 0:00:06]} 32. Rd1 {[%clk 0:00:12]}  Nc4 {[%clk 0:00:02]} 33. f3 {[%clk 0:00:12]}  Ne3 {[%clk 0:00:02]} 34. Rd2 {[%clk 0:00:11]}  Nc4 {[%clk 0:00:03]} 35. Re2 {[%clk 0:00:10]}  Ne5 {[%clk 0:00:03]} 36. Kf2 {[%clk 0:00:10]}  Bc4 {[%clk 0:00:03]} 37. Re3 {[%clk 0:00:09]}  Rd8 {[%clk 0:00:03]} 38. c3 {[%clk 0:00:08]}  Nd3+ {[%clk 0:00:03]} 39. Kg3 {[%clk 0:00:07]}  Nf4 {[%clk 0:00:04]} 40. Nf5 {[%clk 0:00:06]}  Be6 {[%clk 0:00:04]} 41. Nd4 {[%clk 0:00:05]}  Ra8 {[%clk 0:00:04]} 42. Re1 {[%clk 0:00:05]}  Ra2 {[%clk 0:00:04]} 43. Rg1 {[%clk 0:00:00]}  Bc4 {[%clk 0:00:03]} 0-1

[Event "January 2 Late 2024"]
[Site "https://www.chess.com"]
[Date "2024.01.02"]
[Round "6"]
[White "Duda, Jan-Krzysztof"]
[Black "Manolache, Marius"]
[Result "1-0"]
[Board "34"]
[TimeControl "180+1"]
[WhiteFideId "1170546"]
[BlackFideId "1201530"]
[WhiteElo "3043"]
[BlackElo "2680"]
[WhiteTeam "POL"]
[BlackTeam "ROU"]
[WhiteClock "0:00:17"]
[BlackClock "0:00:00"]

1. c3 {[%clk 0:03:00]}  Nf6 {[%clk 0:02:59]} 2. Na3 {[%clk 0:03:01]}  d6 {[%clk 0:02:59]} 3. Nc2 {[%clk 0:03:02]}  e5 {[%clk 0:02:58]} 4. d3 {[%clk 0:03:03]}  g6 {[%clk 0:02:57]} 5. g3 {[%clk 0:03:04]}  Bg7 {[%clk 0:02:57]} 6. Bg2 {[%clk 0:03:04]}  O-O {[%clk 0:02:58]} 7. Nh3 {[%clk 0:03:05]}  c6 {[%clk 0:02:56]} 8. O-O {[%clk 0:03:05]}  d5 {[%clk 0:02:54]} 9. f3 {[%clk 0:03:05]}  Re8 {[%clk 0:02:53]} 10. Nf2 {[%clk 0:03:06]}  Na6 {[%clk 0:02:53]} 11. e4 {[%clk 0:03:03]}  dxe4 {[%clk 0:02:45]} 12. fxe4 {[%clk 0:03:04]}  Be6 {[%clk 0:02:34]} 13. Bg5 {[%clk 0:03:03]}  h6 {[%clk 0:02:34]} 14. Be3 {[%clk 0:03:04]}  Kh7 {[%clk 0:02:33]} 15. d4 {[%clk 0:02:58]}  Nc7 {[%clk 0:02:18]} 16. Qd2 {[%clk 0:02:56]}  Qe7 {[%clk 0:02:13]} 17. b3 {[%clk 0:02:54]}  Rad8 {[%clk 0:02:12]} 18. Rae1 {[%clk 0:02:52]}  b6 {[%clk 0:02:07]} 19. Kh1 {[%clk 0:02:51]}  Rd7 {[%clk 0:02:05]} 20. Nd3 {[%clk 0:02:47]}  exd4 {[%clk 0:01:52]} 21. cxd4 {[%clk 0:02:47]}  Rdd8 {[%clk 0:01:45]} 22. Ncb4 {[%clk 0:02:44]}  Bd7 {[%clk 0:01:43]} 23. Ne5 {[%clk 0:02:38]}  Qe6 {[%clk 0:01:37]} 24. Nbd3 {[%clk 0:02:38]}  Bc8 {[%clk 0:01:20]} 25. Qc1 {[%clk 0:02:30]}  Bb7 {[%clk 0:01:15]} 26. Nf4 {[%clk 0:02:10]}  Qe7 {[%clk 0:01:14]} 27. Nxc6 {[%clk 0:02:10]}  Bxc6 {[%clk 0:01:13]} 28. Qxc6 {[%clk 0:02:11]}  Rd6 {[%clk 0:01:01]} 29. Qc2 {[%clk 0:02:04]}  Nxe4 {[%clk 0:01:00]} 30. Bg1 {[%clk 0:02:01]}  f5 {[%clk 0:01:00]} 31. g4 {[%clk 0:01:46]}  Bxd4 {[%clk 0:00:34]} 32. Nxg6 {[%clk 0:01:28]}  Rxg6 {[%clk 0:00:34]} 33. gxf5 {[%clk 0:01:27]}  Rxg2 {[%clk 0:00:34]} 34. Qxg2 {[%clk 0:01:27]}  Bxg1 {[%clk 0:00:20]} 35. Rxg1 {[%clk 0:01:28]}  Nd5 {[%clk 0:00:14]} 36. Qg6+ {[%clk 0:00:56]}  Kh8 {[%clk 0:00:13]} 37. Re2 {[%clk 0:00:57]}  Ndf6 {[%clk 0:00:13]} 38. Qxh6+ {[%clk 0:00:33]}  Qh7 {[%clk 0:00:12]} 39. Qxh7+ {[%clk 0:00:31]}  Kxh7 {[%clk 0:00:11]} 40. Reg2 {[%clk 0:00:30]}  Re5 {[%clk 0:00:11]} 41. Rg7+ {[%clk 0:00:28]}  Kh8 {[%clk 0:00:12]} 42. Rxa7 {[%clk 0:00:28]}  Rxf5 {[%clk 0:00:12]} 43. Rc1 {[%clk 0:00:27]}  Ng8 {[%clk 0:00:09]} 44. Rc4 {[%clk 0:00:28]}  Nef6 {[%clk 0:00:07]} 45. Rb7 {[%clk 0:00:25]}  b5 {[%clk 0:00:04]} 46. Rh4+ {[%clk 0:00:24]}  Nh5 {[%clk 0:00:03]} 47. a4 {[%clk 0:00:20]}  bxa4 {[%clk 0:00:03]} 48. bxa4 {[%clk 0:00:21]}  Nf6 {[%clk 0:00:03]} 49. Rb5 {[%clk 0:00:22]}  Rf1+ {[%clk 0:00:04]} 50. Kg2 {[%clk 0:00:22]}  Ra1 {[%clk 0:00:04]} 51. Rhxh5+ {[%clk 0:00:21]}  Nxh5 {[%clk 0:00:04]} 52. Rxh5+ {[%clk 0:00:22]}  Kg7 {[%clk 0:00:05]} 53. Ra5 {[%clk 0:00:22]}  Ra3 {[%clk 0:00:05]} 54. h4 {[%clk 0:00:21]}  Kf6 {[%clk 0:00:05]} 55. h5 {[%clk 0:00:20]}  Kg7 {[%clk 0:00:05]} 56. Kf2 {[%clk 0:00:21]}  Kf6 {[%clk 0:00:05]} 57. Ke2 {[%clk 0:00:21]}  Ke6 {[%clk 0:00:06]} 58. h6 {[%clk 0:00:21]}  Rh3 {[%clk 0:00:03]} 59. Ra6+ {[%clk 0:00:20]}  Kd5 {[%clk 0:00:03]} 60. Rb6 {[%clk 0:00:16]}  Kc5 {[%clk 0:00:02]} 61. a5 {[%clk 0:00:16]}  Rh4 {[%clk 0:00:01]} 62. Ke3 {[%clk 0:00:16]}  Rh5 {[%clk 0:00:01]} 63. Kf4 {[%clk 0:00:16]}  Rh1 {[%clk 0:00:01]} 64. Kg5 {[%clk 0:00:16]}  Rh2 {[%clk 0:00:01]} 65. Kg6 {[%clk 0:00:16]}  Rg2+ {[%clk 0:00:01]} 66. Kf7 {[%clk 0:00:16]}  Rh2 {[%clk 0:00:01]} 67. Kg7 {[%clk 0:00:17]}  Rg2+ {[%clk 0:00:00]} 68. Rg6 {[%clk 0:00:17]} 1-0

[Event "January 2 Late 2024"]
[Site "https://www.chess.com"]
[Date "2024.01.02"]
[Round "6"]
[White "Kramnik, Vladimir"]
[Black "TheCavemanChess"]
[Result "1-0"]
[Board "36"]
[TimeControl "180+1"]
[WhiteFideId "4101588"]
[WhiteElo "2970"]
[BlackElo "2678"]
[WhiteTeam "RUS"]
[WhiteClock "0:00:38"]
[BlackClock "0:00:04"]

1. e4 {[%clk 0:02:48]}  c5 {[%clk 0:02:59]} 2. Nf3 {[%clk 0:02:47]}  d6 {[%clk 0:03:00]} 3. d4 {[%clk 0:02:46]}  cxd4 {[%clk 0:03:01]} 4. Nxd4 {[%clk 0:02:46]}  Nf6 {[%clk 0:03:01]} 5. Nc3 {[%clk 0:02:46]}  g6 {[%clk 0:03:02]} 6. Be2 {[%clk 0:02:45]}  Nc6 {[%clk 0:03:01]} 7. Be3 {[%clk 0:02:46]}  Bg7 {[%clk 0:03:02]} 8. O-O {[%clk 0:02:46]}  O-O {[%clk 0:03:02]} 9. Qd2 {[%clk 0:02:46]}  Bd7 {[%clk 0:02:56]} 10. Rfd1 {[%clk 0:02:45]}  Rc8 {[%clk 0:02:56]} 11. f3 {[%clk 0:02:44]}  Re8 {[%clk 0:02:56]} 12. Nxc6 {[%clk 0:02:39]}  Bxc6 {[%clk 0:02:41]} 13. a4 {[%clk 0:02:33]}  Qa5 {[%clk 0:02:27]} 14. Nb5 {[%clk 0:02:19]}  Qxd2 {[%clk 0:02:19]} 15. Rxd2 {[%clk 0:02:20]}  a6 {[%clk 0:01:53]} 16. Na7 {[%clk 0:02:20]}  Ra8 {[%clk 0:01:53]} 17. Nxc6 {[%clk 0:02:16]}  bxc6 {[%clk 0:01:53]} 18. Rb1 {[%clk 0:02:13]}  a5 {[%clk 0:01:47]} 19. c3 {[%clk 0:02:08]}  Nd7 {[%clk 0:01:46]} 20. f4 {[%clk 0:01:58]}  Reb8 {[%clk 0:00:57]} 21. Rc2 {[%clk 0:01:56]}  e5 {[%clk 0:00:39]} 22. Rd1 {[%clk 0:01:53]}  Bf8 {[%clk 0:00:32]} 23. fxe5 {[%clk 0:01:44]}  Nxe5 {[%clk 0:00:31]} 24. Bf4 {[%clk 0:01:42]}  Rb7 {[%clk 0:00:28]} 25. Bxe5 {[%clk 0:01:40]}  dxe5 {[%clk 0:00:28]} 26. Bc4 {[%clk 0:01:40]}  Kg7 {[%clk 0:00:25]} 27. Rcd2 {[%clk 0:01:39]}  Re8 {[%clk 0:00:16]} 28. Kf1 {[%clk 0:01:38]}  Bc5 {[%clk 0:00:16]} 29. Ke2 {[%clk 0:01:37]}  Ree7 {[%clk 0:00:16]} 30. b3 {[%clk 0:01:35]}  f5 {[%clk 0:00:17]} 31. Rd8 {[%clk 0:01:34]}  fxe4 {[%clk 0:00:15]} 32. Rg8+ {[%clk 0:01:31]}  Kh6 {[%clk 0:00:15]} 33. Rc8 {[%clk 0:01:28]}  Rbc7 {[%clk 0:00:15]} 34. Rdd8 {[%clk 0:01:27]}  Rxc8 {[%clk 0:00:14]} 35. Rxc8 {[%clk 0:01:27]}  Bg1 {[%clk 0:00:11]} 36. Rxc6 {[%clk 0:01:23]}  Rd7 {[%clk 0:00:12]} 37. Re6 {[%clk 0:01:16]}  Bxh2 {[%clk 0:00:10]} 38. Bb5 {[%clk 0:01:14]}  Rd8 {[%clk 0:00:08]} 39. Bc6 {[%clk 0:01:13]}  Bf4 {[%clk 0:00:07]} 40. Bxe4 {[%clk 0:01:12]}  Rd2+ {[%clk 0:00:08]} 41. Kf3 {[%clk 0:01:12]}  Rb2 {[%clk 0:00:09]} 42. Bd5 {[%clk 0:01:04]}  Rc2 {[%clk 0:00:09]} 43. Rc6 {[%clk 0:01:04]}  Bd2 {[%clk 0:00:09]} 44. Ke2 {[%clk 0:00:47]}  Bf4+ {[%clk 0:00:05]} 45. Kd3 {[%clk 0:00:46]}  Rd2+ {[%clk 0:00:05]} 46. Kc4 {[%clk 0:00:46]}  Kg5 {[%clk 0:00:06]} 47. Rc5 {[%clk 0:00:42]}  Rc2 {[%clk 0:00:05]} 48. Rxa5 {[%clk 0:00:41]}  Bd2 {[%clk 0:00:06]} 49. Kd3 {[%clk 0:00:40]}  Bxc3 {[%clk 0:00:04]} 50. Rc5 {[%clk 0:00:38]} 1-0

[Event "January 2 Late 2024"]
[Site "https://www.chess.com"]
[Date "2024.01.02"]
[Round "6"]
[White "Ibarra Jerez, Jose Carlos"]
[Black "Espinoza Villanueva, Rodrigo"]
[Result "1-0"]
[Board "40"]
[TimeControl "180+1"]
[WhiteFideId "2226332"]
[BlackFideId "5140188"]
[WhiteElo "2889"]
[BlackElo "2640"]
[WhiteTeam "ESP"]
[BlackTeam "MEX"]
[WhiteClock "0:00:33"]
[BlackClock "0:00:05"]

1. e4 {[%clk 0:03:00]}  c5 {[%clk 0:02:56]} 2. Nf3 {[%clk 0:03:01]}  Nc6 {[%clk 0:02:56]} 3. Nc3 {[%clk 0:03:01]}  Nf6 {[%clk 0:02:56]} 4. d4 {[%clk 0:03:01]}  cxd4 {[%clk 0:02:57]} 5. Nxd4 {[%clk 0:03:02]}  e5 {[%clk 0:02:57]} 6. Ndb5 {[%clk 0:03:02]}  d6 {[%clk 0:02:56]} 7. Bg5 {[%clk 0:03:02]}  a6 {[%clk 0:02:57]} 8. Na3 {[%clk 0:03:03]}  b5 {[%clk 0:02:57]} 9. Bxf6 {[%clk 0:03:03]}  gxf6 {[%clk 0:02:57]} 10. Nd5 {[%clk 0:03:04]}  f5 {[%clk 0:02:57]} 11. g3 {[%clk 0:03:05]}  fxe4 {[%clk 0:02:56]} 12. Bg2 {[%clk 0:03:05]}  Bg7 {[%clk 0:02:57]} 13. Bxe4 {[%clk 0:03:04]}  Ra7 {[%clk 0:02:51]} 14. Qh5 {[%clk 0:03:02]}  h6 {[%clk 0:02:46]} 15. c3 {[%clk 0:02:27]}  O-O {[%clk 0:02:32]} 16. Ne3 {[%clk 0:02:26]}  Ne7 {[%clk 0:02:22]} 17. g4 {[%clk 0:02:23]}  d5 {[%clk 0:02:08]} 18. Rd1 {[%clk 0:02:22]}  Be6 {[%clk 0:01:56]} 19. Nf5 {[%clk 0:02:17]}  Bxf5 {[%clk 0:01:44]} 20. gxf5 {[%clk 0:02:15]}  f6 {[%clk 0:01:35]} 21. Rg1 {[%clk 0:02:14]}  Kh8 {[%clk 0:01:30]} 22. Rd3 {[%clk 0:02:10]}  Rd7 {[%clk 0:01:02]} 23. Bh1 {[%clk 0:01:49]}  Qe8 {[%clk 0:00:57]} 24. Qh3 {[%clk 0:01:45]}  Qf7 {[%clk 0:00:55]} 25. Nc2 {[%clk 0:01:42]}  d4 {[%clk 0:00:33]} 26. b3 {[%clk 0:01:35]}  Rc8 {[%clk 0:00:31]} 27. Be4 {[%clk 0:01:17]}  Rxc3 {[%clk 0:00:25]} 28. Rxc3 {[%clk 0:01:16]}  dxc3 {[%clk 0:00:26]} 29. Qxc3 {[%clk 0:01:16]}  Qh5 {[%clk 0:00:24]} 30. Ne3 {[%clk 0:01:09]}  Qh4 {[%clk 0:00:21]} 31. Qc2 {[%clk 0:01:01]}  Kh7 {[%clk 0:00:18]} 32. Rg2 {[%clk 0:00:55]}  Rd4 {[%clk 0:00:18]} 33. Bf3 {[%clk 0:00:42]}  h5 {[%clk 0:00:17]} 34. Qc7 {[%clk 0:00:41]}  Bf8 {[%clk 0:00:15]} 35. Qb8 {[%clk 0:00:35]}  Bg7 {[%clk 0:00:08]} 36. Qe8 {[%clk 0:00:34]}  Ng8 {[%clk 0:00:05]} 37. Qg6+ {[%clk 0:00:33]} 1-0

[Event "January 2 Late 2024"]
[Site "https://www.chess.com"]
[Date "2024.01.02"]
[Round "6"]
[White "Lobanov, Sergei"]
[Black "Manukyan, Sargis A."]
[Result "1-0"]
[Board "41"]
[TimeControl "180+1"]
[WhiteFideId "24183750"]
[BlackFideId "13303970"]
[WhiteElo "2836"]
[BlackElo "2634"]
[WhiteTeam "FID"]
[BlackTeam "ARM"]
[WhiteClock "0:00:19"]
[BlackClock "0:01:13"]

1. d4 {[%clk 0:03:00]}  d5 {[%clk 0:02:59]} 2. c4 {[%clk 0:03:01]}  e6 {[%clk 0:03:00]} 3. Nc3 {[%clk 0:03:01]}  Nf6 {[%clk 0:03:00]} 4. cxd5 {[%clk 0:03:01]}  Nxd5 {[%clk 0:03:00]} 5. e4 {[%clk 0:03:01]}  Nxc3 {[%clk 0:03:01]} 6. bxc3 {[%clk 0:03:02]}  c5 {[%clk 0:03:01]} 7. Rb1 {[%clk 0:03:02]}  cxd4 {[%clk 0:02:59]} 8. cxd4 {[%clk 0:03:03]}  Nc6 {[%clk 0:02:57]} 9. Nf3 {[%clk 0:03:00]}  Bb4+ {[%clk 0:02:55]} 10. Bd2 {[%clk 0:03:01]}  Bxd2+ {[%clk 0:02:55]} 11. Qxd2 {[%clk 0:03:02]}  O-O {[%clk 0:02:55]} 12. Bb5 {[%clk 0:03:02]}  Bd7 {[%clk 0:02:51]} 13. O-O {[%clk 0:03:00]}  a6 {[%clk 0:02:51]} 14. Bd3 {[%clk 0:02:58]}  b5 {[%clk 0:02:50]} 15. d5 {[%clk 0:02:52]}  exd5 {[%clk 0:02:48]} 16. exd5 {[%clk 0:02:53]}  Ne7 {[%clk 0:02:48]} 17. d6 {[%clk 0:02:26]}  Ng6 {[%clk 0:02:45]} 18. Rbc1 {[%clk 0:02:18]}  Rc8 {[%clk 0:02:44]} 19. Bxg6 {[%clk 0:02:12]}  hxg6 {[%clk 0:02:44]} 20. Ne5 {[%clk 0:02:10]}  Rxc1 {[%clk 0:02:36]} 21. Rxc1 {[%clk 0:02:10]}  Be6 {[%clk 0:02:36]} 22. h3 {[%clk 0:02:04]}  Qf6 {[%clk 0:02:32]} 23. Nc6 {[%clk 0:01:51]}  Kh7 {[%clk 0:02:28]} 24. d7 {[%clk 0:01:44]}  Bxd7 {[%clk 0:02:00]} 25. Qxd7 {[%clk 0:01:44]}  Qb2 {[%clk 0:02:00]} 26. Rd1 {[%clk 0:01:34]}  Qxa2 {[%clk 0:01:59]} 27. Rd4 {[%clk 0:01:35]}  Qb1+ {[%clk 0:01:51]} 28. Kh2 {[%clk 0:01:34]}  g5 {[%clk 0:01:51]} 29. Qe7 {[%clk 0:01:17]}  Rc8 {[%clk 0:01:51]} 30. Qd7 {[%clk 0:01:10]}  Rf8 {[%clk 0:01:45]} 31. Ne7 {[%clk 0:00:43]}  Qc2 {[%clk 0:01:34]} 32. f4 {[%clk 0:00:25]}  g4 {[%clk 0:01:21]} 33. Qxg4 {[%clk 0:00:21]}  Qc5 {[%clk 0:01:13]} 34. Qh4+ {[%clk 0:00:19]} 1-0